[Event "Torneo Nuevo Centro. Jornada 10"]
[Site "Chess.com"]
[Date "2020.08.21"]
[Round "9"]
[White "Gracia Calvo, Andrés"]
[Black "Gukasov, Artem"]
[Result "1-0"]
[WhiteElo "1794"]
[BlackElo "1463"]
[TimeControl "180+2"]
[EndTime "12:11:10 PDT"]
[Termination "Victoria de andresjaque21 por tiempo"]

1. d4 {[%clk 0:03:01.9]} 1... Nf6 {[%clk 0:02:59.8]} 2. Nf3 {[%clk 0:03:03.2]}
2... g6 {[%clk 0:02:59.5]} 3. Bf4 {[%clk 0:03:04.4]} 3... Bg7 {[%clk 0:02:53.4]}
4. e3 {[%clk 0:03:04.9]} 4... d6 {[%clk 0:02:39.1]} 5. c4 {[%clk 0:03:04.7]}
5... O-O {[%clk 0:02:36.6]} 6. h3 {[%clk 0:03:04.6]} 6... b6 {[%clk 0:02:23.3]}
7. Be2 {[%clk 0:03:04.2]} 7... Bb7 {[%clk 0:02:20.6]} 8. Nc3 {[%clk 0:03:04.1]}
8... c5 {[%clk 0:02:16.7]} 9. d5 {[%clk 0:03:04.2]} 9... Nbd7 {[%clk 0:02:12.1]}
10. O-O {[%clk 0:03:04]} 10... a6 {[%clk 0:02:01.8]} 11. a4 {[%clk 0:03:02.7]}
11... Qc7 {[%clk 0:01:45.9]} 12. e4 {[%clk 0:03:01.6]} 12... h5 {[%clk
0:01:42.2]} 13. Re1 {[%clk 0:02:58.2]} 13... Nh7 {[%clk 0:01:39.8]} 14. Bd3
{[%clk 0:02:47.4]} 14... Ne5 {[%clk 0:01:31.4]} 15. Nxe5 {[%clk 0:02:29.5]}
15... Bxe5 {[%clk 0:01:29.9]} 16. Bxe5 {[%clk 0:02:27.3]} 16... dxe5 {[%clk
0:01:29.3]} 17. Qd2 {[%clk 0:02:16.6]} 17... Qd7 {[%clk 0:01:10.9]} 18. f4
{[%clk 0:02:10.6]} 18... exf4 {[%clk 0:01:09.5]} 19. Qxf4 {[%clk 0:02:10.4]}
19... e6 {[%clk 0:01:06.6]} 20. Rad1 {[%clk 0:02:00.6]} 20... exd5 {[%clk
0:01:02.4]} 21. Nxd5 {[%clk 0:01:52.4]} 21... Bxd5 {[%clk 0:00:56.6]} 22. exd5
{[%clk 0:01:52.3]} 22... Rfe8 {[%clk 0:00:54.8]} 23. Rf1 {[%clk 0:01:31]} 23...
Kg7 {[%clk 0:00:47.4]} 24. Rf2 {[%clk 0:01:30.1]} 24... f5 {[%clk 0:00:40.4]}
25. Qf3 {[%clk 0:01:20.1]} 25... Qe7 {[%clk 0:00:34.9]} 26. Re2 {[%clk
0:01:10.1]} 26... Qd7 {[%clk 0:00:32.8]} 27. Rde1 {[%clk 0:01:08.2]} 27... Rxe2
{[%clk 0:00:32.9]} 28. Qxe2 {[%clk 0:01:08.4]} 28... Kf7 {[%clk 0:00:29.3]} 29.
Kf2 {[%clk 0:01:01]} 29... Re8 {[%clk 0:00:28.6]} 30. Qxe8+ {[%clk 0:01:00.4]}
30... Qxe8 {[%clk 0:00:28.2]} 31. Rxe8 {[%clk 0:01:00.9]} 31... Kxe8 {[%clk
0:00:29.2]} 32. Kf3 {[%clk 0:00:55]} 32... Ke7 {[%clk 0:00:28.8]} 33. Kf4 {[%clk
0:00:54.4]} 33... Kd6 {[%clk 0:00:29]} 34. g4 {[%clk 0:00:51]} 34... fxg4 {[%clk
0:00:25.6]} 35. hxg4 {[%clk 0:00:51.2]} 35... g5+ {[%clk 0:00:13.1]} 36. Kf3
{[%clk 0:00:36.5]} 36... Nf6 {[%clk 0:00:12.2]} 37. gxh5 {[%clk 0:00:35]} 37...
Nxh5 {[%clk 0:00:11.6]} 38. Kg4 {[%clk 0:00:23]} 38... Nf4 {[%clk 0:00:10]} 39.
Bf1 {[%clk 0:00:21.1]} 39... Ke5 {[%clk 0:00:08.9]} 40. Kxg5 {[%clk 0:00:20.1]}
40... b5 {[%clk 0:00:06.2]} 41. axb5 {[%clk 0:00:20.4]} 41... axb5 {[%clk
0:00:05.5]} 42. b3 {[%clk 0:00:17.8]} 42... Nxd5 {[%clk 0:00:06.5]} 43. cxd5
{[%clk 0:00:18]} 43... Kxd5 {[%clk 0:00:07.3]} 44. Bxb5 {[%clk 0:00:18.6]} 44...
Kd4 {[%clk 0:00:08.9]} 45. Bc4 {[%clk 0:00:18.9]} 45... Kc3 {[%clk 0:00:09.5]}
46. Kf5 {[%clk 0:00:19.8]} 46... Kb4 {[%clk 0:00:06.2]} 47. Ke5 {[%clk
0:00:19.9]} 1

[Event "Torneo Nuevo Centro. Jornada 10"]
[Site "Chess.com"]
[Date "2020.08.21"]
[Round "9"]
[White "Bercaru, Vlad Ionut"]
[Black "Marques Montolio, Luis"]
[Result "0-1"]
[WhiteElo "1725"]
[BlackElo "1474"]
[TimeControl "180+2"]
[EndTime "12:11:53 PDT"]
[Termination "Victoria de ateneomaritimo por tiempo"]

1. c4 {[%clk 0:03:01.9]} 1... c6 {[%clk 0:03:00.3]} 2. Nf3 {[%clk 0:03:01]} 2...
d5 {[%clk 0:03:02.2]} 3. e3 {[%clk 0:03:02.1]} 3... a6 {[%clk 0:02:59.7]} 4. Nc3
{[%clk 0:03:01.9]} 4... Bf5 {[%clk 0:02:59]} 5. d4 {[%clk 0:03:00.9]} 5... Nf6
{[%clk 0:02:58.8]} 6. cxd5 {[%clk 0:03:01.3]} 6... cxd5 {[%clk 0:02:58.7]} 7.
Bd3 {[%clk 0:03:01.9]} 7... Bxd3 {[%clk 0:02:58.3]} 8. Qxd3 {[%clk 0:03:03.2]}
8... Nc6 {[%clk 0:02:59.7]} 9. a3 {[%clk 0:03:02]} 9... e6 {[%clk 0:03:00.6]}
10. Bd2 {[%clk 0:03:02.1]} 10... Bd6 {[%clk 0:03:01.6]} 11. h3 {[%clk 0:03:02]}
11... Qc7 {[%clk 0:03:02.1]} 12. Rc1 {[%clk 0:03:00.2]} 12... h6 {[%clk
0:03:02.4]} 13. b4 {[%clk 0:02:58]} 13... Qd7 {[%clk 0:03:01.8]} 14. O-O {[%clk
0:02:56.6]} 14... Rc8 {[%clk 0:03:01.6]} 15. Ne2 {[%clk 0:02:51.8]} 15... O-O
{[%clk 0:03:01.2]} 16. Rfe1 {[%clk 0:02:31.6]} 16... Ne4 {[%clk 0:03:01.2]} 17.
Bc3 {[%clk 0:02:23.4]} 17... Bb8 {[%clk 0:02:57.8]} 18. Nd2 {[%clk 0:02:19.6]}
18... f5 {[%clk 0:02:57]} 19. Nxe4 {[%clk 0:02:13.5]} 19... fxe4 {[%clk
0:02:57]} 20. Qd2 {[%clk 0:02:13.8]} 20... Qd6 {[%clk 0:02:58]} 21. g3 {[%clk
0:02:06]} 21... Rf3 {[%clk 0:02:57.5]} 22. Nf4 {[%clk 0:01:54]} 22... Rf8 {[%clk
0:02:48.6]} 23. a4 {[%clk 0:01:45.3]} 23... g5 {[%clk 0:02:48.7]} 24. Nh5 {[%clk
0:01:15.8]} 24... Kh7 {[%clk 0:02:36.1]} 25. Re2 {[%clk 0:01:12.5]} 25... Kg6
{[%clk 0:02:35.1]} 26. b5 {[%clk 0:00:43.9]} 26... axb5 {[%clk 0:02:24.1]} 27.
axb5 {[%clk 0:00:44.5]} 27... Ne7 {[%clk 0:02:20.9]} 28. Bb4 {[%clk 0:00:42.4]}
28... Qd8 {[%clk 0:02:20.3]} 29. g4 {[%clk 0:00:26.6]} 29... Rxh3 {[%clk
0:02:16.7]} 30. Kg2 {[%clk 0:00:26.5]} 30... Rff3 {[%clk 0:02:13.9]} 31. Rh1
{[%clk 0:00:23.8]} 31... Rxh1 {[%clk 0:02:09]} 32. Kxh1 {[%clk 0:00:24.6]} 32...
Qe8 {[%clk 0:01:44]} 33. Kg2 {[%clk 0:00:18]} 33... Nc8 {[%clk 0:01:22.9]} 34.
Ng3 {[%clk 0:00:17]} 34... Nd6 {[%clk 0:01:17.2]} 35. Bxd6 {[%clk 0:00:13.7]}
35... Bxd6 {[%clk 0:01:18.4]} 36. Qc2 {[%clk 0:00:12.9]} 36... Qd7 {[%clk
0:01:06.4]} 37. Nxe4 {[%clk 0:00:07.2]} 37... dxe4 {[%clk 0:01:05.2]} 38. Qxe4+
{[%clk 0:00:07.4]} 38... Rf5 {[%clk 0:01:00.9]} 39. gxf5+ {[%clk 0:00:07.8]}
39... exf5 {[%clk 0:01:00.7]} 40. Qd5 {[%clk 0:00:07.7]} 40... Qc7 {[%clk
0:00:38.8]} 41. Kf1 {[%clk 0:00:07]} 41... b6 {[%clk 0:00:26]} 42. Re1 {[%clk
0:00:07.7]} 42... h5 {[%clk 0:00:20.2]} 43. Qc6 {[%clk 0:00:08.2]} 43... Qb8
{[%clk 0:00:18.2]} 44. Rc1 {[%clk 0:00:08.8]} 44... h4 {[%clk 0:00:16.6]} 45. d5
{[%clk 0:00:09.5]} 45... Kh5 {[%clk 0:00:16.5]} 46. Qd7 {[%clk 0:00:07.7]} 46...
Kg6 {[%clk 0:00:14.4]} 47. Qe6+ {[%clk 0:00:07.8]} 47... Kh5 {[%clk 0:00:14]}
48. Rc6 {[%clk 0:00:08.5]} 48... Bc5 {[%clk 0:00:13.9]} 49. Qg6+ {[%clk
0:00:08.8]} 49... Kg4 {[%clk 0:00:13.8]} 50. f3+ {[%clk 0:00:08]} 50... Kxf3
{[%clk 0:00:06.9]} 51. Qxf5+ {[%clk 0:00:08.7]} 51... Kxe3 {[%clk 0:00:06.8]}
52. Qxg5+ {[%clk 0:00:09]} 52... Kd3 {[%clk 0:00:07.1]} 53. Qf5+ {[%clk
0:00:08.6]} 53... Kc4 {[%clk 0:00:07.7]} 54. Qg4+ {[%clk 0:00:07.9]} 54... Kxb5
{[%clk 0:00:08.2]} 55. Qxh4 {[%clk 0:00:07.5]} 55... Qe5 {[%clk 0:00:06.1]} 56.
Qe1 {[%clk 0:00:03.9]} 56... Qf5+ {[%clk 0:00:06.3]} 57. Kg2 {[%clk 0:00:03.9]}
57... Qxd5+ {[%clk 0:00:06.4]} 0

[Event "Torneo Nuevo Centro. Jornada 10"]
[Site "Chess.com"]
[Date "2020.08.21"]
[Round "9"]
[White "Luque Saiz, Andrés"]
[Black "Martínez Escandell, Alfonso"]
[Result "0-1"]
[WhiteElo "2036"]
[BlackElo "1906"]
[TimeControl "180+2"]
[EndTime "12:12:05 PDT"]
[Termination "Victoria de Alfonso10 por abandono"]

1. e4 {[%clk 0:03:01.9]} 1... c5 {[%clk 0:02:59.7]} 2. Nf3 {[%clk 0:03:02.1]}
2... e6 {[%clk 0:02:59.5]} 3. Nc3 {[%clk 0:03:02.6]} 3... Nc6 {[%clk 0:02:57.9]}
4. d4 {[%clk 0:03:03.1]} 4... cxd4 {[%clk 0:02:59.1]} 5. Nxd4 {[%clk 0:03:05]}
5... Nf6 {[%clk 0:02:55.4]} 6. g3 {[%clk 0:02:52.4]} 6... Bc5 {[%clk 0:02:55.4]}
7. Nxc6 {[%clk 0:02:47.3]} 7... bxc6 {[%clk 0:02:50]} 8. e5 {[%clk 0:02:47.3]}
8... Nd5 {[%clk 0:02:47.1]} 9. Ne4 {[%clk 0:02:43]} 9... Be7 {[%clk 0:02:37.1]}
10. c4 {[%clk 0:02:42.5]} 10... Nb6 {[%clk 0:02:34.9]} 11. Nd6+ {[%clk 0:02:35]}
11... Bxd6 {[%clk 0:02:35]} 12. Qxd6 {[%clk 0:02:36.9]} 12... Qe7 {[%clk
0:02:22.5]} 13. Qxe7+ {[%clk 0:02:03.1]} 13... Kxe7 {[%clk 0:02:24.4]} 14. Be3
{[%clk 0:02:04.4]} 14... Bb7 {[%clk 0:02:17.6]} 15. O-O-O {[%clk 0:02:01.2]}
15... Kd8 {[%clk 0:02:01.4]} 16. b3 {[%clk 0:01:51.1]} 16... f6 {[%clk
0:01:55.2]} 17. f4 {[%clk 0:01:26.6]} 17... c5 {[%clk 0:01:52.6]} 18. Rg1 {[%clk
0:01:26.6]} 18... Rc8 {[%clk 0:01:50]} 19. Bh3 {[%clk 0:01:26.3]} 19... Ke8
{[%clk 0:01:47.2]} 20. a4 {[%clk 0:01:23.2]} 20... Rc7 {[%clk 0:01:39.1]} 21.
Kc2 {[%clk 0:01:18.5]} 21... Bf3 {[%clk 0:01:33.7]} 22. Rd2 {[%clk 0:01:13.3]}
22... Ke7 {[%clk 0:01:30.2]} 23. Kc3 {[%clk 0:01:00.6]} 23... a5 {[%clk
0:01:27.5]} 24. Rd6 {[%clk 0:00:54.4]} 24... Rb8 {[%clk 0:01:21.8]} 25. Rf1
{[%clk 0:00:49.8]} 25... Be4 {[%clk 0:01:13.7]} 26. Re1 {[%clk 0:00:48.7]} 26...
Bf3 {[%clk 0:01:10]} 27. Bf1 {[%clk 0:00:35.4]} 27... Nc8 {[%clk 0:01:07.2]} 28.
Ra6 {[%clk 0:00:34.9]} 28... fxe5 {[%clk 0:00:56]} 29. fxe5 {[%clk 0:00:35.4]}
29... Ra8 {[%clk 0:00:53]} 30. Rxa8 {[%clk 0:00:30]} 30... Bxa8 {[%clk
0:00:54.9]} 31. Bd3 {[%clk 0:00:30.4]} 31... h6 {[%clk 0:00:51.8]} 32. Rf1
{[%clk 0:00:25.6]} 32... d5 {[%clk 0:00:47.4]} 33. exd6+ {[%clk 0:00:25.3]}
33... Nxd6 {[%clk 0:00:48.3]} 34. Bf4 {[%clk 0:00:25.2]} 34... Rd7 {[%clk
0:00:46]} 35. Re1 {[%clk 0:00:25.6]} 35... Bf3 {[%clk 0:00:42.8]} 36. Re3 {[%clk
0:00:25.9]} 36... Bg4 {[%clk 0:00:40.2]} 37. Bg6 {[%clk 0:00:26.5]} 37... Bf5
{[%clk 0:00:35.5]} 38. Bxf5 {[%clk 0:00:25.6]} 38... Nxf5 {[%clk 0:00:36.7]} 39.
Re5 {[%clk 0:00:26.9]} 39... g5 {[%clk 0:00:33.3]} 40. Be3 {[%clk 0:00:25.3]}
40... Kd6 {[%clk 0:00:27.8]} 41. Re4 {[%clk 0:00:22.2]} 41... Rf7 {[%clk
0:00:25.2]} 42. Bd2 {[%clk 0:00:16.5]} 42... Nd4 {[%clk 0:00:22.2]} 43. Kb2
{[%clk 0:00:17.1]} 43... Rf2 {[%clk 0:00:19.3]} 44. Kc3 {[%clk 0:00:17.9]} 44...
Rf3+ {[%clk 0:00:19.2]} 45. Re3 {[%clk 0:00:17.2]} 45... Rf2 {[%clk 0:00:19.6]}
46. Rd3 {[%clk 0:00:17.1]} 46... Rxh2 {[%clk 0:00:20.3]} 47. Be3 {[%clk
0:00:16.9]} 47... e5 {[%clk 0:00:21.2]} 48. Bd2 {[%clk 0:00:16.3]} 48... Rg2
{[%clk 0:00:21.6]} 49. Kb2 {[%clk 0:00:16.8]} 49... Ke6 {[%clk 0:00:21.9]} 50.
Ka3 {[%clk 0:00:17.1]} 50... Nc2+ {[%clk 0:00:22.3]} 51. Kb2 {[%clk 0:00:17.4]}
51... Nd4 {[%clk 0:00:22.5]} 52. Ka3 {[%clk 0:00:13.7]} 52... e4 {[%clk
0:00:23.5]} 53. Re3 {[%clk 0:00:08]} 53... Rxd2 {[%clk 0:00:24.7]} 54. Rxe4+
{[%clk 0:00:09]} 54... Kf5 {[%clk 0:00:26.6]} 55. Re8 {[%clk 0:00:09.7]} 55...
Nc2+ {[%clk 0:00:27.1]} 56. Kb2 {[%clk 0:00:10.7]} 56... Nb4+ {[%clk 0:00:27.1]}
57. Kc1 {[%clk 0:00:11.5]} 57... Rg2 {[%clk 0:00:27.9]} 58. Kd1 {[%clk
0:00:13.4]} 58... Rxg3 {[%clk 0:00:28.6]} 59. Rc8 {[%clk 0:00:14.3]} 59... Rxb3
{[%clk 0:00:29.5]} 60. Rxc5+ {[%clk 0:00:15.1]} 60... Kg4 {[%clk 0:00:30.5]} 61.
Rxa5 {[%clk 0:00:17]} 61... Ra3 {[%clk 0:00:30.7]} 62. c5 {[%clk 0:00:16.4]}
62... h5 {[%clk 0:00:31.1]} 63. Ra8 {[%clk 0:00:17.2]} 63... h4 {[%clk
0:00:30.7]} 64. Rd8 {[%clk 0:00:16]} 64... Rxa4 {[%clk 0:00:30.3]} 65. Rd5
{[%clk 0:00:16.7]} 65... Nxd5 {[%clk 0:00:30.9]} 0

[Event "Torneo Nuevo Centro. Jornada 10"]
[Site "Chess.com"]
[Date "2020.08.21"]
[Round "9"]
[White "Conejero Martínez, Víctor"]
[Black "Ainsa Jimenez, Lucas"]
[Result "0-1"]
[WhiteElo "1373"]
[BlackElo "1188"]
[TimeControl "180+2"]
[EndTime "12:12:06 PDT"]
[Termination "Victoria de ainsaluck por abandono"]

1. d4 {[%clk 0:03:01.9]} 1... d5 {[%clk 0:03:00]} 2. c4 {[%clk 0:03:02.2]} 2...
dxc4 {[%clk 0:03:00.4]} 3. e3 {[%clk 0:03:02.5]} 3... Nf6 {[%clk 0:02:59.6]} 4.
Bxc4 {[%clk 0:03:02.5]} 4... Bf5 {[%clk 0:03:00.6]} 5. Qf3 {[%clk 0:03:01.2]}
5... Be4 {[%clk 0:02:57.2]} 6. Qg3 {[%clk 0:02:48.3]} 6... Nh5 {[%clk
0:02:51.5]} 7. Qg4 {[%clk 0:02:48]} 7... Nf6 {[%clk 0:02:51.8]} 8. Qh3 {[%clk
0:02:38.6]} 8... Qd7 {[%clk 0:02:33.4]} 9. Qxd7+ {[%clk 0:02:32.9]} 9... Nbxd7
{[%clk 0:02:33]} 10. Nf3 {[%clk 0:02:33.2]} 10... Nb6 {[%clk 0:02:28.5]} 11.
Nbd2 {[%clk 0:02:28.1]} 11... Nxc4 {[%clk 0:02:14.4]} 12. Nxc4 {[%clk
0:02:28.5]} 12... O-O-O {[%clk 0:02:12.9]} 13. O-O {[%clk 0:02:24.7]} 13... Bxf3
{[%clk 0:02:11.1]} 14. gxf3 {[%clk 0:02:24.7]} 14... e6 {[%clk 0:01:59.6]} 15.
Ne5 {[%clk 0:02:24.9]} 15... Re8 {[%clk 0:01:40.9]} 16. Nxf7 {[%clk 0:02:24.9]}
16... Rg8 {[%clk 0:01:39.2]} 17. Ne5 {[%clk 0:02:24.5]} 17... Kb8 {[%clk
0:01:34.5]} 18. Bd2 {[%clk 0:02:21.3]} 18... Bd6 {[%clk 0:01:33.6]} 19. Nc4
{[%clk 0:02:16.5]} 19... Be7 {[%clk 0:01:31.4]} 20. Rac1 {[%clk 0:02:14.6]}
20... Rd8 {[%clk 0:01:31.1]} 21. Ne5 {[%clk 0:02:11.8]} 21... Rd5 {[%clk
0:01:26.7]} 22. Rc2 {[%clk 0:02:05.2]} 22... Nd7 {[%clk 0:01:23.8]} 23. e4
{[%clk 0:01:55.5]} 23... Rxd4 {[%clk 0:01:22]} 24. Nxd7+ {[%clk 0:01:55.9]}
24... Rxd7 {[%clk 0:01:20.1]} 25. Rfc1 {[%clk 0:01:49.3]} 25... Bd6 {[%clk
0:01:19.9]} 26. Bc3 {[%clk 0:01:42.1]} 26... Rf7 {[%clk 0:01:14.8]} 27. e5
{[%clk 0:01:41.1]} 27... Bc5 {[%clk 0:01:04.8]} 28. Kg2 {[%clk 0:01:37.5]} 28...
Rgf8 {[%clk 0:01:00.4]} 29. a3 {[%clk 0:01:37.5]} 29... Rxf3 {[%clk 0:00:58]}
30. b4 {[%clk 0:01:38.3]} 30... Bxf2 {[%clk 0:00:52.8]} 31. Be1 {[%clk
0:01:29.2]} 31... Be3 {[%clk 0:00:42.2]} 32. Rc3 {[%clk 0:01:21.7]} 32... Bxc1
{[%clk 0:00:41.2]} 33. Rxf3 {[%clk 0:01:21.6]} 33... Rxf3 {[%clk 0:00:35.3]} 34.
Kxf3 {[%clk 0:01:22.4]} 34... Bxa3 {[%clk 0:00:35.6]} 35. Kg4 {[%clk 0:01:22.7]}
35... Kc8 {[%clk 0:00:32.8]} 36. h4 {[%clk 0:01:21.5]} 36... Kd7 {[%clk
0:00:30.3]} 37. h5 {[%clk 0:01:20.5]} 37... Kc6 {[%clk 0:00:30.7]} 38. Kg5
{[%clk 0:01:16.5]} 38... Kd5 {[%clk 0:00:30.6]} 39. Bc3 {[%clk 0:01:11.2]} 39...
Bc1+ {[%clk 0:00:19.1]} 40. Kg4 {[%clk 0:01:08.8]} 40... h6 {[%clk 0:00:19.3]}
41. Kf3 {[%clk 0:01:01.5]} 41... Kc4 {[%clk 0:00:19.9]} 42. Be1 {[%clk
0:00:59.5]} 42... Ba3 {[%clk 0:00:20.6]} 43. Bf2 {[%clk 0:00:58.1]} 43... Bxb4
{[%clk 0:00:21]} 44. Bxa7 {[%clk 0:00:59]} 44... Bc5 {[%clk 0:00:21.2]} 45. Bb8
{[%clk 0:00:58.3]} 45... Bb6 {[%clk 0:00:22.1]} 46. Ke4 {[%clk 0:00:58.4]} 46...
Kc5 {[%clk 0:00:21.7]} 47. Kd3 {[%clk 0:00:55.7]} 47... Kc6 {[%clk 0:00:22.1]}
48. Kc4 {[%clk 0:00:52.4]} 48... Kd7 {[%clk 0:00:22.9]} 49. Kb5 {[%clk
0:00:19.7]} 49... Kc8 {[%clk 0:00:22.7]} 50. Bxc7 {[%clk 0:00:20.5]} 50... Bxc7
{[%clk 0:00:22.7]} 51. Kc4 {[%clk 0:00:18.3]} 51... Bxe5 {[%clk 0:00:24.6]} 52.
Kd3 {[%clk 0:00:19]} 52... Kc7 {[%clk 0:00:24.7]} 53. Ke4 {[%clk 0:00:19.8]}
53... Kd6 {[%clk 0:00:23.7]} 54. Ke3 {[%clk 0:00:19.7]} 54... b5 {[%clk
0:00:23.9]} 55. Kd3 {[%clk 0:00:20.4]} 55... Kc5 {[%clk 0:00:24.2]} 56. Kc2
{[%clk 0:00:19.9]} 56... Kc4 {[%clk 0:00:25.2]} 57. Kc1 {[%clk 0:00:17.5]} 57...
Kc3 {[%clk 0:00:25]} 58. Kb1 {[%clk 0:00:16.9]} 58... b4 {[%clk 0:00:24.2]} 59.
Kc1 {[%clk 0:00:17.2]} 59... Bd4 {[%clk 0:00:22.8]} 60. Kb1 {[%clk 0:00:16.6]}
60... Kb3 {[%clk 0:00:23.7]} 61. Kc1 {[%clk 0:00:16.8]} 61... Ka2 {[%clk
0:00:24.3]} 62. Kc2 {[%clk 0:00:17]} 62... b3+ {[%clk 0:00:24.8]} 63. Kd3 {[%clk
0:00:18]} 63... Bf6 {[%clk 0:00:24.9]} 64. Ke4 {[%clk 0:00:18.4]} 64... b2
{[%clk 0:00:25.2]} 0

[Event "Torneo Nuevo Centro. Jornada 10"]
[Site "Chess.com"]
[Date "2020.08.21"]
[Round "9"]
[White "Yuste Valenzuela, Alejandro"]
[Black "Cebolla Ruiz, David"]
[Result "1-0"]
[WhiteElo "1867"]
[BlackElo "1546"]
[TimeControl "180+2"]
[EndTime "12:12:14 PDT"]
[Termination "Victoria de alejandrito290 por jaque mate"]

1. e4 {[%clk 0:03:01.9]} 1... e5 {[%clk 0:02:57.8]} 2. Nf3 {[%clk 0:03:02.9]}
2... d6 {[%clk 0:02:53.5]} 3. d4 {[%clk 0:03:02.3]} 3... exd4 {[%clk 0:02:38.3]}
4. Nxd4 {[%clk 0:03:04.2]} 4... Nf6 {[%clk 0:02:24.5]} 5. Nc3 {[%clk 0:03:04.6]}
5... Be7 {[%clk 0:02:25]} 6. Be3 {[%clk 0:03:00.6]} 6... O-O {[%clk 0:02:25.7]}
7. Be2 {[%clk 0:03:01.5]} 7... c6 {[%clk 0:02:19.5]} 8. Qd2 {[%clk 0:02:58.7]}
8... Re8 {[%clk 0:02:18.4]} 9. O-O-O {[%clk 0:02:57.2]} 9... d5 {[%clk
0:02:15.3]} 10. exd5 {[%clk 0:02:56]} 10... Nxd5 {[%clk 0:02:06.4]} 11. Nxd5
{[%clk 0:02:56.4]} 11... Qxd5 {[%clk 0:02:02]} 12. Kb1 {[%clk 0:02:50.5]} 12...
Be6 {[%clk 0:02:00.1]} 13. Nxe6 {[%clk 0:02:51.1]} 13... Qxe6 {[%clk 0:01:56.6]}
14. Bd3 {[%clk 0:02:40]} 14... Na6 {[%clk 0:01:56]} 15. Bxa6 {[%clk 0:02:22.6]}
15... bxa6 {[%clk 0:01:55.5]} 16. Qd7 {[%clk 0:01:57.1]} 16... Red8 {[%clk
0:01:39.6]} 17. Qxe6 {[%clk 0:01:51.3]} 17... fxe6 {[%clk 0:01:34.9]} 18. c3
{[%clk 0:01:48.1]} 18... c5 {[%clk 0:01:32.8]} 19. Kc2 {[%clk 0:01:48]} 19...
Kf7 {[%clk 0:01:32.6]} 20. Kb3 {[%clk 0:01:41.4]} 20... Rab8+ {[%clk 0:01:31]}
21. Kc2 {[%clk 0:01:31.7]} 21... Rb7 {[%clk 0:01:18.8]} 22. Rxd8 {[%clk
0:01:29.3]} 22... Bxd8 {[%clk 0:01:19.3]} 23. Bxc5 {[%clk 0:01:28.8]} 23... Bb6
{[%clk 0:01:19.7]} 24. Bxb6 {[%clk 0:01:28.5]} 24... axb6 {[%clk 0:01:21]} 25.
Rd1 {[%clk 0:01:27.3]} 25... Ke7 {[%clk 0:01:21.8]} 26. b4 {[%clk 0:01:26.9]}
26... a5 {[%clk 0:01:16.9]} 27. a3 {[%clk 0:01:26.8]} 27... axb4 {[%clk
0:01:16.8]} 28. axb4 {[%clk 0:01:28.7]} 28... Rc7 {[%clk 0:01:17]} 29. Ra1
{[%clk 0:01:27.9]} 29... Kd6 {[%clk 0:01:13.3]} 30. Ra6 {[%clk 0:01:26.1]} 30...
Kc6 {[%clk 0:01:11.8]} 31. Kb3 {[%clk 0:01:25.1]} 31... Kb7 {[%clk 0:01:11.7]}
32. Ra2 {[%clk 0:01:24.4]} 32... Rf7 {[%clk 0:01:11.6]} 33. Re2 {[%clk
0:01:24.2]} 33... Rf6 {[%clk 0:01:10.9]} 34. f3 {[%clk 0:01:24.1]} 34... Kc6
{[%clk 0:01:11.3]} 35. Kc4 {[%clk 0:01:25.1]} 35... Rf4+ {[%clk 0:01:08.7]} 36.
Kb3 {[%clk 0:01:25.2]} 36... Kd6 {[%clk 0:01:06.8]} 37. c4 {[%clk 0:01:23]}
37... e5 {[%clk 0:01:02.6]} 38. Re3 {[%clk 0:01:19.8]} 38... Rf5 {[%clk
0:00:51.8]} 39. Rd3+ {[%clk 0:01:10.2]} 39... Kc6 {[%clk 0:00:28.8]} 40. Rd8
{[%clk 0:00:53.2]} 40... Kc7 {[%clk 0:00:25.9]} 41. Rg8 {[%clk 0:00:51.9]} 41...
Rf7 {[%clk 0:00:22.9]} 42. Ka4 {[%clk 0:00:45.7]} 42... Kc6 {[%clk 0:00:18.5]}
43. Re8 {[%clk 0:00:33.5]} 43... Kd6 {[%clk 0:00:17.2]} 44. Kb5 {[%clk
0:00:32.2]} 44... Kc7 {[%clk 0:00:12.4]} 45. Rxe5 {[%clk 0:00:31.3]} 45... Rf4
{[%clk 0:00:11.7]} 46. c5 {[%clk 0:00:28]} 46... bxc5 {[%clk 0:00:10.4]} 47.
bxc5 {[%clk 0:00:29.9]} 47... Rf7 {[%clk 0:00:09.6]} 48. h4 {[%clk 0:00:25.7]}
48... h6 {[%clk 0:00:06.3]} 49. h5 {[%clk 0:00:26.2]} 49... Rd7 {[%clk
0:00:05.5]} 50. f4 {[%clk 0:00:25.7]} 50... Rf7 {[%clk 0:00:05.9]} 51. f5 {[%clk
0:00:27]} 51... Kb7 {[%clk 0:00:05.4]} 52. g4 {[%clk 0:00:19]} 52... Kc7 {[%clk
0:00:02.1]} 53. Re6 {[%clk 0:00:20.1]} 53... Kd7 {[%clk 0:00:03.1]} 54. Ra6
{[%clk 0:00:19.7]} 54... Kd8 {[%clk 0:00:03.5]} 55. Ra8+ {[%clk 0:00:20.6]}
55... Ke7 {[%clk 0:00:04.8]} 56. Ra7+ {[%clk 0:00:22.2]} 56... Kf6 {[%clk
0:00:06]} 57. Rxf7+ {[%clk 0:00:23.8]} 57... Kxf7 {[%clk 0:00:07.4]} 58. c6
{[%clk 0:00:25.2]} 58... g6 {[%clk 0:00:08.7]} 59. fxg6+ {[%clk 0:00:23.4]}
59... Kg7 {[%clk 0:00:09.5]} 60. c7 {[%clk 0:00:24.4]} 60... Kg8 {[%clk
0:00:10.4]} 61. c8=Q+ {[%clk 0:00:25.1]} 61... Kg7 {[%clk 0:00:11.8]} 62. Qc3+
{[%clk 0:00:24.3]} 62... Kg8 {[%clk 0:00:12.4]} 63. Qc4+ {[%clk 0:00:22.3]}
63... Kh8 {[%clk 0:00:12.4]} 64. Qc8+ {[%clk 0:00:18.4]} 64... Kg7 {[%clk
0:00:13]} 65. Qd7+ {[%clk 0:00:18.6]} 65... Kf8 {[%clk 0:00:11.2]} 66. Qf7#
{[%clk 0:00:16.9]} 1